bitfinex/quotes_ETHUSD_20251111
["timestamp","ask_amount","ask_price","bid_price","bid_amount"]
[1762897215914,0.53771678,3420.6,3420.5,4.63094918]
[1762897216339,0.4734,3421.5,3420.5,4.63094918]
[1762897216340,0.49808586,3421.3,3421.2,2.92295101]
[1762897216542,0.53767598,3421.3,3421.0,2.92312189]
[1762897216742,0.49808586,3421.0,3420.9,0.739]
[1762897217055,1.03576184,3421.0,3420.9,3.66220734]
[1762897217234,0.53767598,3421.0,3420.9,3.66220734]
[1762897217955,1.49246184,3421.0,3420.9,3.66220734]
[1762897218358,1.03576184,3421.0,3420.9,3.66220734]
[1762897218874,1.46797598,3421.0,3420.1,0.1908]
[1762897219168,0.49808586,3420.7,3420.6,2.92346371]
[1762897219323,1.03576184,3420.7,3420.6,2.92346371]
[1762897219524,1.03576184,3420.7,3419.8,3.40620221]
[1762897219525,0.49808586,3420.4,3419.5,2.92440415]
[1762897219754,1.05912995,3420.3,3419.1,0.1918]
[1762897219922,0.1805,3420.9,3419.1,0.1918]
[1762897219923,1.03534493,3420.2,3420.1,2.92389111]
[1762897220260,0.53725907,3420.2,3419.9,0.737]
[1762897220455,0.49808586,3420.0,3419.9,3.66105231]
[1762897220659,1.49204493,3420.0,3419.9,3.6610621]
[1762897221017,1.49204493,3420.0,3419.9,0.737]
[1762897221236,1.49204493,3420.0,3419.9,3.6610621]
[1762897221757,1.49204493,3420.0,3419.1,0.1918]
[1762897221956,1.19115907,3419.9,3419.1,2.92570776]
[1762897222276,0.53725907,3419.8,3419.1,0.001]
[1762897222558,0.49808586,3419.5,3419.4,2.92448967]
[1762897222743,0.76671313,3419.5,3419.4,2.92448967]
[1762897223055,1.22341313,3419.5,3419.4,2.92448967]
[1762897223363,0.49808586,3419.2,3419.1,0.001]
[1762897223521,1.03546024,3419.2,3419.1,0.001]
[1762897223725,1.03546024,3419.2,3419.1,2.92574627]
[1762897224179,1.49216024,3419.2,3419.1,2.92574627]
[1762897224487,2.45818232,3419.2,3419.1,0.001]
[1762897224946,1.46727438,3419.2,3419.1,0.001]
[1762897225281,2.45818232,3419.2,3419.1,0.001]
[1762897225586,1.96536024,3419.2,3419.1,2.92574627]
[1762897225788,2.45818232,3419.2,3419.1,0.001]
[1762897225989,1.49632318,3419.2,3419.1,0.001]
[1762897226188,4.23954728,3419.2,3419.1,0.001]
[1762897227185,0.49808586,3418.0,3417.9,2.92571713]
[1762897227392,0.49282208,3417.8,3416.7,1.1988]
[1762897227560,0.1828,3418.2,3417.1,2.926446]
[1762897227752,0.53660266,3418.1,3416.9,2.9266294]
[1762897227950,0.49808586,3417.9,3417.8,2.92579499]
[1762897228150,0.49808586,3417.9,3415.9,2.92742315]
[1762897228151,1.97198852,3417.9,3415.9,2.92742315]
[1762897228351,0.0048,3417.7,3416.6,0.4628]
[1762897228600,0.49808586,3418.1,3418.0,2.92562661]
[1762897228756,1.97162546,3418.1,3418.0,2.92562661]
[1762897228949,1.4735396,3418.1,3418.0,2.92568753]
[1762897229167,1.4735396,3418.1,3417.2,3.05383465]
[1762897229367,0.49808586,3417.8,3417.7,2.92594434]
[1762897230784,0.1828,3418.2,3417.7,2.92594434]
[1762897230785,0.1828,3418.5,3417.7,0.9205]
[1762897230984,0.68088586,3419.0,3418.9,2.92491737]
[1762897231193,1.40463481,3419.0,3418.9,2.92491737]
[1762897231411,1.13648586,3419.0,3418.9,2.92491737]
[1762897231789,0.97482208,3419.8,3419.7,2.92423311]
[1762897231994,1.51646486,3419.8,3419.7,2.92423311]
[1762897232303,0.49808586,3419.7,3419.6,2.92431863]
[1762897232507,0.002,3420.5,3419.7,0.4577]
[1762897232691,0.49808586,3420.1,3420.0,2.9239766]
[1762897232887,0.50008586,3420.5,3420.4,2.92363466]
[1762897233781,0.002,3420.5,3420.4,2.92363466]
[1762897233993,0.50008586,3420.5,3420.4,2.952871]
[1762897234196,0.002,3420.5,3420.4,4.11833466]
[1762897234417,0.002,3420.5,3420.4,4.58113466]
[1762897237716,0.002,3420.5,3420.4,5.015875]
[1762897238019,0.002,3420.5,3420.4,4.98663866]
[1762897238319,0.002,3420.5,3420.4,6.12037946]
[1762897238507,0.002,3421.9,3421.8,2.92243848]
[1762897238712,0.002,3421.9,3421.8,4.30223848]
[1762897238926,0.002,3421.9,3421.8,4.79426286]
[1762897239131,0.002,3421.9,3421.8,4.76503848]
[1762897239302,0.002,3421.9,3421.8,5.17054248]
[1762897239800,0.002,3421.9,3421.8,3.56623848]
[1762897240003,0.002,3421.9,3421.8,4.11513848]
[1762897240546,0.002,3421.9,3421.8,3.65743848]
[1762897245046,0.002,3421.9,3421.8,3.65543848]
[1762897246826,0.002,3421.9,3421.8,4.57593848]
[1762897247861,0.002,3421.9,3421.8,4.98144248]
[1762897248224,0.1828,3425.0,3423.9,2.92064604]
[1762897248421,0.94582208,3424.0,3423.2,2.92118433]
[1762897248624,0.94582208,3424.0,3422.0,0.1861]
[1762897248625,0.56263781,3423.9,3422.0,0.1861]
[1762897248846,0.56263781,3423.9,3421.3,2.92278062]
[1762897248847,0.49808586,3422.7,3422.5,2.92177185]
[1762897249048,0.49808586,3422.7,3422.4,0.736]
[1762897249225,0.1828,3422.6,3422.5,2.92184075]
[1762897249436,0.1848,3422.6,3422.5,2.92184075]
[1762897249633,0.6378,3422.6,3422.5,2.92184075]
[1762897250459,0.6378,3422.6,3422.4,2.92189391]
[1762897250659,0.002,3422.6,3422.5,2.92184075]
[1762897250861,0.50008586,3422.6,3422.5,2.92184075]
[1762897251964,0.49808586,3422.3,3422.2,2.92201667]
[1762897252169,0.49808586,3422.0,3421.8,0.735]
[1762897252389,0.4837,3422.6,3420.6,0.1861]
[1762897252390,0.49808586,3421.3,3420.6,0.1861]
[1762897252667,0.6648,3421.9,3420.7,0.735]
[1762897252864,0.49808586,3421.0,3420.7,0.735]
[1762897253069,1.1337408,3422.2,3420.7,0.735]
[1762897253070,0.482,3422.4,3420.8,0.4628]
[1762897253223,0.49808586,3421.8,3421.2,2.92287452]
[1762897253429,0.482,3421.8,3421.7,2.92252389]
[1762897253664,0.68088586,3421.9,3421.8,2.92243848]
[1762897254091,0.49808586,3421.9,3421.8,2.92243848]
[1762897254296,0.98008586,3422.3,3422.2,2.92209689]
[1762897254791,1.43308586,3422.3,3422.2,2.92209689]
[1762897255089,0.49808586,3422.3,3422.2,2.92209689]
[1762897255592,0.49808586,3422.3,3422.0,2.92226767]
[1762897255593,0.49808586,3422.3,3421.9,0.736]
[1762897255756,0.49808586,3422.3,3422.2,2.92209689]
[1762897256766,0.49808586,3422.3,3421.9,0.736]
[1762897256767,0.91,3422.3,3421.9,0.736]
[1762897256971,0.98658586,3422.0,3421.9,3.65827612]
[1762897258763,1.43318586,3422.0,3421.1,0.1349]
[1762897259103,0.49808586,3421.6,3421.5,2.92269472]
[1762897259263,0.76538309,3421.6,3421.5,2.92269472]
[1762897259575,0.26729723,3421.6,3421.5,2.92269472]
[1762897259784,0.50008586,3422.6,3421.5,0.405504]
[1762897259982,0.50008586,3422.6,3421.6,1.2025]
[1762897260177,0.49808586,3422.3,3421.7,0.734]
[1762897260371,0.49808586,3422.3,3421.2,0.4685]
[1762897260372,0.26784464,3422.2,3422.1,2.92218228]
[1762897260585,0.49808586,3422.0,3421.9,2.92235307]
[1762897260794,1.2195305,3422.0,3421.4,0.734]
[1762897260998,0.49808586,3421.7,3421.6,2.92256135]
[1762897261213,0.76677019,3421.7,3421.6,2.92256135]
[1762897261499,0.76677019,3421.7,3420.9,0.4685]
[1762897261500,0.49808586,3420.9,3419.4,2.92445563]
[1762897261703,0.49282208,3421.4,3420.3,2.92372014]
[1762897261704,0.49808586,3420.4,3420.3,2.92372014]
[1762897261899,0.2685935,3420.4,3420.3,2.92372014]
[1762897262227,0.49808586,3420.5,3420.4,2.92363466]
[1762897262510,0.26884877,3420.5,3420.4,2.92363466]
[1762897262709,0.61891477,3420.9,3420.3,0.4822]
[1762897262710,0.2688862,3420.8,3420.7,2.92337825]
[1762897262864,0.49808586,3420.9,3420.8,2.92329279]
[1762897263200,0.4536,3420.8,3420.4,14.5]
[1762897263499,0.76696757,3420.7,3420.2,2.92380562]
[1762897263662,0.76696757,3420.6,3420.5,2.92354918]
[1762897267106,0.76696757,3420.6,3420.5,2.92454918]
[1762897267904,0.76696757,3420.6,3420.5,0.001]
[1762897267905,1.68176757,3420.6,3420.5,0.001]
[1762897268067,3.87624316,3420.6,3420.5,0.001]
[1762897269816,3.87624316,3420.6,3420.1,0.001]
[1762897270032,9.07305928,3420.2,3420.1,0.001]
[1762897270330,2.26993937,3420.2,3420.1,0.001]
[1762897270534,1.65202666,3420.2,3420.1,0.001]
[1762897271440,2.11322666,3420.2,3420.1,0.001]
[1762897271842,2.38076407,3420.2,3420.1,0.001]
[1762897272402,2.38076407,3420.2,3420.1,2.92489111]
[1762897272772,2.38076407,3420.2,3420.1,0.001]
[1762897273970,2.87358615,3420.2,3420.1,0.001]
[1762897274117,10.4179388,3420.2,3420.1,0.001]
[1762897280131,10.6849423,3420.2,3420.1,0.001]
[1762897280779,1.48096299,3420.2,3420.1,0.001]
[1762897280963,2.44024885,3420.2,3420.1,0.001]
[1762897281658,2.44046571,3420.2,3420.1,0.001]
[1762897281856,4.18999189,3420.2,3420.1,0.001]
[1762897282993,3.72879189,3420.2,3420.1,0.001]
[1762897283197,2.62018443,3420.2,3420.1,0.001]
[1762897283402,0.53475777,3420.2,3420.1,4.05989111]
[1762897283611,0.49808586,3420.7,3420.6,2.92346371]
[1762897283792,0.26736762,3420.7,3420.6,2.92346371]
[1762897283957,0.26738751,3420.7,3420.6,3.87416371]
[1762897284158,0.67782208,3421.5,3421.0,2.92311306]
[1762897284454,0.67782208,3421.5,3420.2,2.92380562]
[1762897284455,1.03303052,3421.4,3420.7,3.3918025]
[1762897284657,0.53494466,3421.3,3420.8,2.92322712]
[1762897284865,0.49808586,3421.1,3421.0,2.92312189]
[1762897285066,0.26746627,3421.1,3421.0,2.92312189]
[1762897285271,0.76555213,3421.1,3421.0,2.92312189]
[1762897285562,0.002,3420.7,3420.6,3.39193112]
[1762897285903,0.002,3420.7,3420.6,17.89193112]
[1762897286108,0.002,3420.7,3420.6,18.34993112]
[1762897286774,0.50008586,3420.7,3420.6,18.34993112]
[1762897288253,0.76803333,3420.7,3420.6,18.34993112]
[1762897288455,0.002,3421.1,3421.0,2.92312189]
[1762897288699,0.002,3421.1,3421.0,4.51562589]
[1762897289015,0.002,3421.1,3421.0,4.57442189]
[1762897289157,0.002,3421.1,3421.0,19.07442189]
[1762897289366,0.002,3421.1,3421.0,19.47992589]
[1762897289670,0.26804078,3421.7,3421.0,19.47992589]
[1762897289671,0.50008586,3422.6,3422.5,2.92184075]
[1762897289869,0.76816198,3422.6,3422.5,2.92184075]
[1762897290382,0.27007612,3422.6,3422.2,0.1835]
[1762897290582,0.27007612,3422.6,3421.6,0.6478]
[1762897290583,0.49808586,3422.2,3421.6,0.6478]
[1762897290781,0.49808586,3421.8,3421.7,3.65252389]
[1762897291158,0.4686,3422.6,3421.7,1.6523]
[1762897291159,0.49808586,3422.0,3421.7,1.6523]
[1762897291359,0.49808586,3422.0,3421.1,0.1835]
[1762897291557,0.49808586,3421.7,3421.2,0.4643]
[1762897291760,0.49808586,3421.7,3421.6,2.9226093]
[1762897291963,0.26780699,3421.7,3421.1,0.1835]
[1762897292182,0.49808586,3421.1,3420.9,2.92318653]
[1762897292357,0.49808586,3421.0,3420.9,2.92312979]
[1762897294897,0.49808586,3421.0,3420.9,3.38112979]
[1762897295604,0.49808586,3420.7,3420.6,0.73]
[1762897295806,0.49808586,3420.7,3419.8,13.24760114]
[1762897295807,0.49808586,3420.7,3420.1,0.001]
[1762897296008,0.49808586,3420.2,3420.1,0.001]
[1762897296361,0.4669,3420.7,3419.8,14.6345]
[1762897296590,0.49808586,3419.9,3419.8,2.92414761]
[1762897297106,0.49808586,3419.8,3419.4,0.001]
[1762897297278,0.99090794,3419.8,3419.6,2.92430187]
[1762897297603,0.99090794,3419.8,3419.4,2.92546692]
[1762897297604,2.19263264,3419.8,3419.4,0.001]
[1762897297803,1.72573264,3419.8,3419.6,2.92428641]
[1762897298003,1.72573264,3419.8,3419.4,0.001]
[1762897298306,2.19263264,3419.8,3419.4,2.92547515]
[1762897298488,2.19263264,3419.8,3419.4,0.001]
[1762897298665,2.19263264,3419.8,3419.6,2.92429072]
[1762897298999,2.19263264,3419.8,3419.5,2.92439261]
[1762897299226,2.19263264,3419.8,3419.4,2.92547895]
[1762897299433,2.19263264,3419.8,3419.4,0.001]
[1762897300634,3.59369011,3419.8,3419.4,2.92543409]
[1762897300834,3.59369011,3419.8,3419.4,0.001]
[1762897302248,3.59369011,3419.8,3419.1,0.001]
[1762897302418,0.49808586,3419.2,3419.1,0.001]
[1762897302733,1.03292723,3419.2,3419.1,0.001]
[1762897303114,1.03292723,3419.2,3419.1,2.92574627]
[1762897303744,1.03292723,3419.2,3419.1,0.001]
[1762897303952,1.50022723,3419.2,3419.1,0.001]
[1762897304111,2.45994931,3419.2,3419.1,0.001]
[1762897304747,1.99304931,3419.2,3419.1,0.001]
[1762897305442,0.53484137,3419.2,3419.1,3.47984627]
[1762897305999,1.03292723,3419.2,3419.1,0.459]
[1762897306198,1.03292723,3419.2,3419.1,3.38374627]
[1762897306500,0.76540253,3419.2,3419.1,3.38374627]
[1762897306728,0.26731667,3419.2,3419.1,3.47984627]
[1762897307254,0.49808586,3419.3,3419.2,2.92466073]
[1762897307443,0.1979,3419.9,3419.7,2.92420849]
[1762897307642,1.03254978,3419.8,3419.7,2.92420849]
[1762897309051,0.53446392,3419.8,3419.5,2.92439438]
[1762897309247,0.53446392,3419.7,3419.6,2.92431863]
[1762897309572,0.76531782,3419.7,3419.6,2.92431863]
[1762897309792,0.76531782,3419.7,3419.6,3.38231863]
[1762897309944,1.03258027,3419.7,3419.6,3.38231863]
[1762897310661,0.76531782,3419.7,3419.6,3.38231863]
[1762897310862,0.49282208,3420.4,3419.8,2.92408283]
[1762897311054,0.49808586,3420.1,3420.0,2.9238918]
[1762897311243,1.03267308,3420.1,3420.0,2.9238918]
[1762897311841,0.49808586,3419.8,3419.6,3.64730679]
[1762897312046,0.49808586,3419.8,3419.7,2.92423311]
[1762897313148,0.49808586,3419.8,3419.7,3.38223311]
[1762897314396,0.49808586,3419.8,3419.6,3.64731258]
[1762897314589,0.49808586,3419.7,3419.6,0.723]
[1762897314877,0.49808586,3419.7,3419.6,3.64731474]
[1762897315095,0.4669,3420.2,3419.6,3.64724323]
[1762897315260,0.49808586,3419.7,3419.6,3.64724323]
[1762897315448,0.49808586,3419.7,3419.2,1.1853]
[1762897315766,0.49808586,3419.2,3419.1,2.92574627]
[1762897316145,0.96968586,3419.2,3419.1,0.001]
[1762897316344,1.03263262,3419.2,3419.1,0.001]
[1762897316745,1.50423262,3419.2,3419.1,0.001]
[1762897316945,2.4886035,3419.2,3419.1,0.001]
[1762897317446,2.4595547,3419.2,3419.1,0.001]
[1762897320680,1.9970547,3419.2,3419.1,0.001]
[1762897321082,1.5254547,3419.2,3419.1,0.001]
[1762897321241,2.4598547,3419.2,3419.1,0.001]
[1762897321448,1.03263262,3419.2,3419.1,3.51644627]
[1762897321724,0.53454676,3419.2,3419.1,3.98144627]
[1762897322399,1.2,3419.9,3419.7,2.92418922]
[1762897322702,0.49808586,3419.5,3419.4,2.92448967]
[1762897322864,0.53630012,3419.5,3419.1,0.0971]
[1762897323060,0.49808586,3419.3,3419.1,0.0971]
[1762897323293,0.49808586,3419.4,3419.3,2.9245752]
[1762897323503,1.03478166,3419.4,3419.3,2.9245752]
[1762897323995,1.03478166,3419.4,3419.3,3.4191752]
[1762897324200,1.03478166,3419.4,3419.3,2.9245752]
[1762897324495,1.03478166,3419.4,3419.1,0.001]
[1762897324496,0.49808586,3419.2,3419.1,0.001]
[1762897324701,1.03478166,3419.2,3419.1,2.92574627]
[1762897325320,1.03478166,3419.2,3419.1,0.001]
[1762897325477,1.03478166,3419.2,3419.1,2.92574627]
[1762897325807,1.03478166,3419.2,3419.1,0.001]
[1762897326004,1.03478166,3419.2,3419.1,3.42034627]
[1762897326308,1.0164958,3419.2,3419.1,0.001]
[1762897326604,3.08186709,3419.2,3419.1,0.001]
[1762897327465,2.58904501,3419.2,3419.1,0.001]
[1762897327968,2.13474501,3419.2,3419.1,0.001]
[1762897328167,1.65494501,3419.2,3419.1,2.92574627]
[1762897328633,0.5366958,3419.2,3419.1,3.98134627]
[1762897328780,0.2683479,3419.2,3419.1,3.98134627]
[1762897328967,0.002,3419.7,3419.6,2.92431863]
[1762897329198,0.002,3419.7,3419.6,1.2126]
[1762897329393,0.002,3419.7,3419.1,0.097]
[1762897329394,1.24915823,3419.7,3419.1,0.001]
[1762897329599,1.24915823,3419.7,3419.1,0.562]
[1762897329600,0.889108,3419.6,3419.1,0.562]
[1762897329825,0.26927237,3419.5,3419.4,2.92448967]
[1762897330008,0.26927237,3419.5,3419.4,3.88408967]
[1762897330951,1.46927237,3419.5,3419.4,3.41908967]
[1762897331427,1.46927237,3419.5,3419.4,3.88408967]
[1762897331808,1.96735823,3419.5,3419.4,2.92448967]
[1762897332001,1.96735823,3419.5,3419.4,3.41908967]
[1762897332203,1.46927237,3419.5,3419.4,3.41908967]
[1762897332834,1.46927237,3419.5,3419.4,3.88408967]
[1762897334238,1.46927237,3419.5,3419.4,4.60308967]
[1762897336937,0.002,3419.7,3419.4,4.60308967]
[1762897336938,0.002,3419.7,3419.6,2.92431863]
[1762897337135,0.002,3419.7,3419.6,3.41891863]
[1762897337301,0.002,3419.7,3419.6,3.88391863]
[1762897338533,0.002,3419.7,3419.5,2.92435085]
[1762897338534,0.49808586,3419.6,3419.5,2.92435085]
[1762897338751,0.76713097,3419.6,3419.5,2.92435085]
[1762897340209,0.76713097,3419.6,3419.5,3.64035085]
[1762897340931,1.03601577,3419.6,3419.5,0.716]
[1762897341242,1.03601577,3419.6,3419.5,3.64040415]
[1762897341836,1.03601577,3419.6,3419.5,0.716]
[1762897342040,1.47232991,3419.6,3419.1,0.001]
[1762897342239,0.97788586,3419.2,3419.1,0.001]
[1762897342432,1.51581577,3419.2,3419.1,0.001]
[1762897342628,1.97011577,3419.2,3419.1,0.001]
[1762897343720,3.17011577,3419.2,3419.1,2.92574627]
[1762897343914,2.23601577,3419.2,3419.1,3.51634627]
[1762897344116,1.4688848,3419.2,3419.1,4.69634627]
[1762897344316,1.4688848,3419.2,3419.1,4.72559373]
[1762897344524,1.4688848,3419.2,3419.1,4.69634627]
[1762897347849,1.4688848,3419.2,3419.1,5.10185027]
[1762897348157,1.4688848,3419.2,3419.1,4.69634627]
[1762897351314,0.2688848,3419.2,3419.1,4.69634627]
[1762897353231,0.002,3419.7,3419.6,2.92431863]
[1762897353439,0.27114574,3419.7,3419.6,4.13521863]
[1762897353778,0.27114574,3419.7,3419.6,4.59391863]
[1762897353932,0.002,3419.7,3419.6,4.59391863]
[1762897354876,0.002,3419.7,3419.6,5.72765943]
[1762897357266,0.002,3419.7,3419.6,6.13316343]
[1762897359563,0.002,3419.7,3419.6,5.72765943]
[1762897360158,0.002,3419.7,3419.6,5.26895943]
[1762897360338,0.002,3419.7,3419.6,5.72765943]
[1762897362670,0.002,3420.4,3420.2,2.92380562]
[1762897362834,0.002,3420.4,3420.3,5.18242414]
[1762897363033,0.002,3420.4,3420.3,6.31616494]
[1762897363372,0.002,3420.4,3420.3,5.18242414]
[1762897363870,0.002,3420.4,3420.3,4.72372414]
[1762897364056,0.002,3420.4,3420.3,2.92372014]
[1762897364244,0.445,3420.4,3420.3,2.92372014]
[1762897364452,0.71355318,3420.4,3420.3,2.92372014]
[1762897365277,0.98210439,3420.4,3420.3,2.92372014]
[1762897365571,1.95769025,3420.4,3420.3,2.92372014]
[1762897365743,1.45960439,3420.4,3420.3,2.92372014]
[1762897366362,1.95769025,3420.4,3420.3,2.92372014]
[1762897366672,1.45960439,3420.4,3420.3,2.92372014]
[1762897367092,1.95769025,3420.4,3420.3,2.92372014]
[1762897367250,1.45960439,3420.4,3420.3,2.92372014]
[1762897367951,1.95769025,3420.4,3420.3,2.92372014]
[1762897368670,1.45960439,3420.4,3420.3,2.92372014]
[1762897368854,1.95769025,3420.4,3420.3,2.92372014]
[1762897369379,0.49808586,3420.3,3420.2,3.63572637]
[1762897369544,1.95599025,3420.3,3420.2,3.63572637]
[1762897369751,1.95599025,3420.3,3420.2,3.63580562]
[1762897370280,1.47819025,3420.3,3420.2,3.63580562]
[1762897370493,0.53710439,3420.3,3420.2,4.16394367]
[1762897370645,0.26855121,3420.3,3420.2,4.62264367]
[1762897371072,0.26855121,3420.3,3420.2,4.59340562]
[1762897371262,0.26855121,3420.3,3420.2,4.62264367]
[1762897371877,0.26855121,3420.3,3420.2,4.59340562]
[1762897372185,0.26855121,3420.3,3420.2,4.13470562]
[1762897373474,6.62456145,3420.3,3419.5,0.712]
[1762897373677,0.49808586,3419.9,3419.8,2.92414761]
[1762897373989,1.03523835,3419.9,3419.8,2.92414761]
[1762897374148,0.49808586,3419.6,3419.5,0.712]
[1762897374351,0.98015249,3419.6,3419.5,3.63640415]
[1762897374887,0.53715249,3419.6,3419.5,3.63640415]
[1762897375272,0.53715249,3419.6,3419.5,4.16454819]
[1762897375495,0.50008586,3420.4,3420.3,2.92372014]
[1762897375669,0.002,3420.4,3420.3,2.92372014]
[1762897375862,0.4539,3420.4,3420.3,2.92372014]
[1762897376067,0.4539,3420.4,3420.3,3.63572014]
[1762897377077,0.95198586,3420.4,3420.3,3.63572014]
[1762897377283,0.4539,3420.4,3420.3,3.63572014]
[1762897377588,1.42068586,3420.4,3420.3,3.63572014]
[1762897377963,1.42068586,3420.4,3420.3,0.712]
[1762897378176,1.42068586,3420.4,3420.3,2.92372014]
[1762897380262,0.49808586,3420.2,3420.1,3.63587367]
[1762897380460,0.96478586,3420.2,3420.1,2.92387367]
[1762897380775,1.41678586,3420.2,3420.1,2.92389111]
[1762897382215,1.41678586,3420.2,3419.9,3.63598385]
[1762897382216,1.41678586,3420.2,3420.0,2.92397284]
[1762897382367,0.49808586,3420.2,3420.1,2.92389111]
[1762897382575,0.4667,3420.1,3419.5,0.001]
[1762897382793,0.49808586,3419.8,3419.7,2.92423311]
[1762897383009,0.95208586,3420.0,3419.9,2.9240621]
[1762897383280,1.41678586,3420.0,3419.9,2.9240621]
[1762897384273,0.9187,3420.0,3419.9,2.9240621]
[1762897384578,1.41678586,3420.0,3419.9,2.9240621]
[1762897384980,0.9187,3420.0,3419.8,2.92411376]
[1762897385221,0.452,3419.9,3419.7,0.712]
[1762897385426,0.49808586,3419.6,3419.5,0.001]
[1762897385719,0.96478586,3419.6,3419.5,0.001]
[1762897385921,1.41678586,3419.6,3419.5,2.92540415]
[1762897386570,0.96478586,3419.6,3419.5,2.92540415]
[1762897386774,1.03093255,3420.4,3419.5,0.4844]
[1762897387107,0.4667,3419.6,3419.5,2.92534268]
[1762897387309,0.96478586,3419.6,3419.5,2.92540415]
[1762897387480,1.95471379,3419.6,3419.5,2.92540415]
[1762897387812,0.53792793,3419.6,3419.5,0.001]
[1762897387975,0.53792793,3419.6,3419.5,2.92540415]
[1762897388181,1.03601379,3419.6,3419.5,2.92540415]
[1762897389218,2.44753587,3419.6,3419.5,0.001]
[1762897389424,1.95471379,3419.6,3419.5,0.001]
[1762897390000,2.44753587,3419.6,3419.5,0.001]
[1762897391815,1.95471379,3419.6,3419.5,0.001]
[1762897392032,2.44753587,3419.6,3419.5,0.001]
[1762897393611,2.44953587,3419.6,3419.5,0.001]
[1762897394026,1.95671379,3419.6,3419.5,2.92540415]
[1762897394324,1.95671379,3419.6,3419.5,0.001]
[1762897394529,2.44953587,3419.6,3419.5,0.001]
[1762897394728,1.95671379,3419.6,3419.5,0.001]
[1762897395931,2.44953587,3419.6,3419.5,0.001]
[1762897396298,1.95671379,3419.6,3419.5,0.001]
[1762897396498,2.44953587,3419.6,3419.5,0.001]
[1762897398333,3.58327667,3419.6,3419.5,0.001]
[1762897398529,4.20237829,3419.6,3419.5,0.001]
[1762897398695,0.49808586,3419.2,3419.1,0.001]
[1762897398894,6.69836231,3419.2,3419.1,0.001]
[1762897399099,7.12424023,3419.2,3419.1,0.001]
[1762897399316,7.61706231,3419.2,3419.1,0.001]
[1762897400431,8.75080311,3419.2,3419.1,0.001]
[1762897400633,8.87686635,3419.2,3419.1,0.001]
[1762897400938,4.19988884,3419.2,3419.1,0.001]
[1762897401629,3.70706676,3419.2,3419.1,0.001]
[1762897402007,4.19988884,3419.2,3419.1,0.001]
[1762897402801,3.70706676,3419.2,3419.1,0.001]
[1762897403006,4.19988884,3419.2,3419.1,0.001]
[1762897404100,3.70706676,3419.2,3419.1,0.001]
[1762897404299,4.19988884,3419.2,3419.1,0.001]
[1762897404544,0.49808586,3418.2,3418.1,2.92560194]
[1762897404843,1.03543568,3418.2,3418.1,2.92560194]
[1762897405057,1.03543568,3418.2,3418.1,3.40900194]
[1762897405264,1.00404982,3418.2,3418.1,2.92560194]
[1762897405552,1.50213568,3418.2,3418.1,2.92560194]
[1762897406347,0.49808586,3417.8,3417.7,2.92594434]
[1762897406640,0.49808586,3417.8,3417.6,0.1839]
[1762897406641,0.96478586,3418.2,3418.1,2.92560194]
[1762897406848,1.03474949,3418.2,3418.1,2.92560194]
[1762897407050,1.03474949,3418.2,3418.0,2.92562286]
[1762897407051,0.99136363,3418.2,3418.0,2.92562286]
[1762897407255,1.03474949,3418.1,3418.0,2.92562286]
[1762897407418,1.48944949,3418.1,3418.0,2.92562286]
[1762897408018,1.96574949,3418.1,3418.0,2.92562286]
[1762897408230,1.03474949,3418.1,3418.0,2.92562286]
[1762897408428,1.48554949,3418.1,3418.0,2.92562286]
[1762897408769,0.49808586,3418.0,3417.9,2.92574713]
[1762897408965,1.03474949,3418.0,3417.9,2.92577313]
[1762897409251,0.49808586,3417.7,3417.6,2.92602996]
[1762897409482,1.03474949,3417.7,3417.6,2.92602996]
[1762897409616,0.53666363,3417.7,3417.6,3.39192996]
[1762897409821,0.53666363,3417.7,3417.6,3.88622996]
[1762897410346,0.53666363,3417.7,3417.6,3.39192996]
[1762897410538,1.03474949,3417.7,3417.6,3.39192996]
[1762897410863,0.53666363,3417.7,3417.6,3.39192996]
[1762897411071,0.53666363,3417.7,3417.6,3.88622996]
[1762897412632,0.53666363,3417.7,3417.6,3.88722996]
[1762897413373,0.53666363,3417.7,3417.6,18.38722996]
[1762897413668,1.48614949,3417.7,3417.6,17.42702996]
[1762897413968,1.03474949,3417.7,3417.6,2.92702996]
[1762897414170,1.03474949,3417.7,3417.6,3.39292996]
[1762897415073,0.1874,3418.7,3418.3,2.92536786]
[1762897415274,1.01669752,3418.6,3417.9,3.63677031]
[1762897415435,0.95278586,3418.0,3417.9,3.63677031]
[1762897415635,1.48898338,3418.0,3417.9,3.63677031]
[1762897416133,1.03428338,3418.0,3417.9,3.63677031]
[1762897416570,1.03428338,3418.0,3417.9,4.10267031]
[1762897418168,1.03428338,3418.0,3417.9,3.63677031]
[1762897418774,1.48898338,3418.0,3417.9,3.63677031]
[1762897419070,1.96948338,3418.0,3417.9,2.92577313]
[1762897420186,1.96965738,3418.0,3417.9,2.92577313]
[1762897420714,1.48915738,3418.0,3417.9,2.92577313]
[1762897422919,2.60531232,3418.0,3417.6,0.001]
[1762897423132,6.12752287,3417.7,3417.6,0.001]
[1762897423332,6.66389439,3417.7,3417.6,0.001]
[1762897423518,7.14439439,3417.7,3417.6,2.92702996]
[1762897423927,7.76258482,3417.7,3417.6,2.92702996]
[1762897424125,7.14439439,3417.7,3417.6,2.92702996]
[1762897424325,7.76262948,3417.7,3417.6,2.92702996]
[1762897424849,1.48944253,3417.7,3417.6,2.92702996]
[1762897425055,3.0811308,3417.7,3417.6,0.001]
[1762897425233,4.2148716,3417.7,3417.6,0.001]
[1762897426112,4.2148716,3417.7,3417.6,2.92702996]
[1762897426319,4.2148716,3417.7,3417.6,0.001]
[1762897426925,4.2148716,3417.7,3417.6,2.92702996]
[1762897427255,3.72204952,3417.7,3417.6,2.92702996]
[1762897427550,3.72204952,3417.7,3417.6,0.001]
[1762897427754,4.2148716,3417.7,3417.6,2.92702996]
[1762897428255,3.24154952,3417.7,3417.6,2.92702996]
[1762897428468,1.03474253,3417.7,3417.6,3.39292996]
[1762897428662,0.53665667,3417.7,3417.6,3.88722996]
[1762897428826,0.53665667,3417.7,3417.6,3.39292996]
[1762897429025,0.53665667,3417.7,3417.6,2.92702996]
[1762897429026,1.03474253,3417.7,3417.6,2.92702996]
[1762897429218,1.48944253,3417.7,3417.6,2.92702996]
[1762897429554,3.08222561,3417.7,3417.6,2.92702996]
[1762897430252,1.65420353,3417.7,3417.6,2.92702996]
[1762897430551,1.65420353,3417.7,3417.6,3.39292996]
[1762897431571,0.53665667,3417.7,3417.6,4.59822996]
[1762897432534,0.77473829,3419.1,3418.6,2.92517404]